fUST/lending_fUST_20240907
["ID","MTS","AMOUNT","RATE_DAILY","PERIOD"]
[337483971,1725693264873,-500.0,0.00047397,120]
[337483972,1725693264921,-500.0,0.00047397,120]
[337483973,1725693264966,-500.0,0.00047397,120]
[337483974,1725693265012,-500.0,0.00047397,120]
[337483975,1725693265057,-500.0,0.00047397,120]
[337483976,1725693265101,-500.0,0.00047397,120]
[337483977,1725693265144,-500.0,0.00047397,120]
[337483978,1725693265187,-500.0,0.00047397,120]
[337483979,1725693265233,-151.0,0.00047397,120]
[337483980,1725693265273,-1209.1,0.00047397,120]
[337483981,1725693265315,-1975.44,0.00047397,120]
[337483982,1725693265355,-151.0,0.00047397,120]
[337483983,1725693265398,-500.0,0.00047397,120]
[337483984,1725693265442,-500.0,0.00047397,120]
[337483985,1725693265491,-500.0,0.00047397,120]
[337483986,1725693265532,-500.0,0.00047397,120]
[337483987,1725693265577,-500.0,0.00047397,120]
[337483988,1725693265617,-500.0,0.00047397,120]
[337483989,1725693265659,-725.85,0.00047397,120]
[337483990,1725693265700,-644.36,0.00047397,120]
[337483991,1725693265742,-500.0,0.00047397,120]
[337483992,1725693265784,-2573.26,0.00047397,120]
[337483993,1725693265826,-500.0,0.00047397,120]
[337483994,1725693265867,-500.0,0.00047397,120]
[337483995,1725693265909,-213.422899,0.00047397,120]
[337483996,1725693265950,-500.0,0.00047397,120]
[337483997,1725693265994,-500.0,0.00047397,120]
[337483998,1725693266034,-500.0,0.00047397,120]
[337483999,1725693266075,-500.0,0.00047397,120]
[337484000,1725693266114,-213.422899,0.00047397,120]
[337484001,1725693266152,-500.0,0.00047397,120]
[337484002,1725693266193,-500.0,0.00047397,120]
[337484003,1725693266233,-1103.35,0.00047397,120]
[337484004,1725693266275,-243.56147575,0.00047397,120]
[337484005,1725693266316,-500.0,0.00047397,120]
[337484006,1725693266358,-500.0,0.00047397,120]
[337484007,1725693266403,-151.0,0.00047397,120]
[337484008,1725693266446,-151.0,0.00047397,120]
[337484009,1725693266487,-500.0,0.00047397,120]
[337484010,1725693266528,-500.0,0.00047397,120]
[337484011,1725693266568,-151.0,0.00047397,120]
[337484012,1725693266610,-151.0,0.00047397,120]
[337484013,1725693266649,-500.0,0.00047397,120]
[337484014,1725693266688,-500.0,0.00047397,120]
[337484015,1725693266730,-500.0,0.00047397,120]
[337484016,1725693266770,-500.0,0.00047397,120]
[337484017,1725693266810,-616.87,0.00047397,120]
[337484018,1725693266850,-500.0,0.00047397,120]
[337484019,1725693266894,-599.24179841,0.00047397,120]
[337484020,1725693266934,-151.0,0.00047397,120]
[337484021,1725693266975,-151.0,0.00047397,120]
[337484022,1725693267015,-151.0,0.00047397,120]
[337484023,1725693267056,-179.413377,0.00047397,120]
[337484024,1725693267186,-151.0,0.00047397,120]
[337484025,1725693267228,-500.0,0.00047397,120]
[337484026,1725693267268,-500.0,0.00047397,120]
[337484027,1725693267307,-500.0,0.00047397,120]
[337484028,1725693267349,-500.0,0.00047397,120]
[337484029,1725693267390,-1206.12,0.00047397,120]
[337484030,1725693267431,-584.58,0.00047397,120]
[337484031,1725693267471,-500.0,0.00047397,120]
[337484032,1725693267513,-809.31,0.00047397,120]
[337484033,1725693267556,-500.0,0.00047397,120]
[337484034,1725693267603,-151.0,0.00047397,90]
[337484035,1725693267648,-151.0,0.00047397,90]
[337484036,1725693267692,-1555.56,0.00047397,120]
[337484037,1725693267736,-500.0,0.00047397,120]
[337484038,1725693267780,-500.0,0.00047397,120]
[337484039,1725693267821,-1002.74,0.00047397,120]
[337484040,1725693267863,-500.0,0.00047397,30]
[337484041,1725693267906,-782.07,0.00047397,120]
[337484042,1725693267949,-500.0,0.00047397,120]
[337484043,1725693267993,-1839.15,0.00047397,120]
[337484044,1725693268035,-626.4525,0.00047397,120]
[337484045,1725693268074,-151.0,0.00047397,120]
[337484046,1725693268115,-151.0,0.00047397,120]
[337484047,1725693268154,-500.0,0.00047397,120]
[337484048,1725693268196,-500.0,0.00047397,120]
[337484049,1725693268238,-151.0,0.00047397,120]
[337484050,1725693268298,-151.0,0.00047397,120]
[337484051,1725693268354,-289.38526198,0.00047397,120]
[337484052,1725693268416,-500.0,0.00047397,21]
[337484053,1725693268473,-500.0,0.00047397,120]
[337484054,1725693268531,-232.37328655,0.00047397,120]
[337484055,1725693268584,-1321.45,0.00047397,120]
[337484056,1725693268639,-500.0,0.00047397,120]
[337484057,1725693268697,-241.580826,0.00047397,120]
[337484058,1725693268744,-241.580826,0.00047397,120]
[337484059,1725693268798,-2059.22,0.00047397,120]
[337484060,1725693268850,-1067.64,0.00047397,120]
[337484061,1725693268901,-151.0,0.00047397,120]
[337484062,1725693268952,-701.69,0.00047397,120]
[337484063,1725693269002,-151.0,0.00047397,120]
[337484064,1725693269053,-151.0,0.00047397,120]
[337484065,1725693269100,-241.580826,0.00047397,120]
[337484066,1725693269148,-1948.29,0.00047397,120]
[337484067,1725693269197,-241.580826,0.00047397,120]
[337484068,1725693269251,-500.0,0.00047397,120]
[337484069,1725693269299,-151.0,0.00047397,120]
[337484070,1725693269348,-500.0,0.00047397,120]
[337484071,1725693269399,-838.5,0.00047397,120]
[337484072,1725693269453,-500.0,0.00047397,120]
[337484073,1725693269508,-500.0,0.00047397,120]
[337484074,1725693269561,-500.0,0.00047397,120]
[337484075,1725693269724,-500.0,0.00047397,120]
[337484076,1725693269775,-500.0,0.00047397,120]
[337484077,1725693269816,-151.0,0.00047397,120]
[337484078,1725693269858,-500.0,0.00047397,120]
[337484079,1725693269900,-500.0,0.00047397,120]
[337484080,1725693269941,-151.0,0.00047397,120]
[337484081,1725693269982,-283.212375,0.00047397,120]
[337484082,1725693270023,-151.0,0.00047397,120]
[337484083,1725693270064,-260.87740865,0.00047397,120]
[337484084,1725693270103,-500.0,0.00047397,14]
[337484085,1725693270142,-500.0,0.00047397,120]
[337484086,1725693270183,-500.0,0.00047397,120]
[337484087,1725693270223,-579.15,0.00047397,120]
[337484088,1725693270263,-500.0,0.00047397,120]
[337484089,1725693270304,-500.0,0.00047397,120]
[337484090,1725693270346,-500.0,0.00047397,120]
[337484091,1725693270386,-500.0,0.00047397,120]
[337484092,1725693270430,-500.0,0.00047397,120]
[337484093,1725693270470,-500.0,0.00047397,120]
[337484094,1725693270510,-165.92030539,0.00047397,120]
[337484095,1725693270551,-500.0,0.00047397,120]
[337484096,1725693270591,-500.0,0.00047397,120]
[337484097,1725693270633,-500.0,0.00047397,120]
[337484098,1725693270677,-228.603328,0.00047397,120]
[337484099,1725693270719,-228.603328,0.00047397,120]
[337484100,1725693270760,-151.0,0.00047397,120]
[337484101,1725693270804,-500.0,0.00047397,120]
[337484102,1725693270845,-228.603328,0.00047397,120]
[337484103,1725693270887,-228.603328,0.00047397,120]
[337484104,1725693270932,-500.0,0.00047397,120]
[337484105,1725693270974,-500.0,0.00047397,120]
[337484106,1725693271017,-500.0,0.00047397,120]
[337484107,1725693271061,-500.0,0.00047397,120]
[337484108,1725693271104,-500.0,0.00047397,120]
[337484109,1725693271146,-4335.74,0.00047397,120]
[337484110,1725693271187,-500.0,0.00047397,120]
[337484111,1725693271232,-999.0,0.00047397,120]
[337484112,1725693271271,-1444.25,0.00047397,120]
[337484113,1725693271314,-519.45,0.00047397,120]
[337484114,1725693271352,-500.0,0.00047397,120]
[337484115,1725693271396,-256.205195,0.00047397,120]
[337484116,1725693271443,-500.0,0.00047397,120]
[337484117,1725693271487,-151.0,0.00047466,120]
[337484118,1725693271531,-151.0,0.00047466,120]
[337484119,1725693271579,-169.382426,0.00047466,120]
[337484120,1725693271625,-169.382426,0.00047466,120]
[337484121,1725693271667,-1200.997584,0.00047466,120]
[337484122,1725693271711,-1200.997584,0.00047466,120]
[337484123,1725693271755,-596.079868,0.00047466,120]
[337484124,1725693271798,-596.079868,0.00047466,120]
[337484125,1725693271837,-256.832796,0.00047466,120]
[337484126,1725693271876,-256.832796,0.00047466,120]
[337484127,1725693271918,-151.0,0.00047466,120]
[337484128,1725693271961,-151.0,0.00047466,120]
[337484129,1725693272000,-180.701741,0.00047466,120]
[337484130,1725693272040,-180.701741,0.00047466,120]
[337484131,1725693272078,-151.0,0.00047466,120]
[337484132,1725693272119,-151.0,0.00047466,14]
[337484133,1725693272158,-199.180226,0.00047466,120]
[337484134,1725693272300,-199.180226,0.00047466,120]
[337484135,1725693272342,-151.0,0.00047466,120]
[337484136,1725693272384,-151.0,0.00047466,120]
[337484137,1725693272425,-151.0,0.00047513,120]
[337484138,1725693272466,-151.0,0.00047513,120]
[337484139,1725693272506,-151.0,0.00047513,120]
[337484140,1725693272547,-151.0,0.00047513,120]
[337484141,1725693272586,-151.0,0.00047671,120]
[337484142,1725693272625,-158.686809,0.00047671,120]
[337484143,1725693272663,-158.686809,0.00047671,120]
[337484144,1725693272703,-500.0,0.00047671,120]
[337484145,1725693272742,-500.0,0.00047671,120]
[337484146,1725693272782,-500.0,0.00047671,120]
[337484147,1725693272820,-500.0,0.00047671,120]
[337484148,1725693272858,-500.0,0.00047671,120]
[337484149,1725693272899,-500.0,0.00047671,120]
[337484150,1725693272940,-514.58799282,0.00047671,120]
[337484151,1725693272979,-500.0,0.00047671,120]
[337484152,1725693273020,-220.20730714,0.00047671,120]
[337484153,1725693273061,-500.0,0.00047671,60]
[337484154,1725693273102,-500.0,0.00047671,120]
[337484155,1725693273143,-500.0,0.00047671,120]
[337484156,1725693273183,-1568.73,0.00047671,120]
[337484157,1725693273224,-500.0,0.00047671,120]
[337484158,1725693273266,-500.0,0.00047671,120]
[337484159,1725693273309,-500.0,0.00047671,120]
[337484160,1725693273351,-500.0,0.00047671,120]
[337484161,1725693273396,-500.0,0.00047671,120]
[337484162,1725693273439,-500.0,0.00047671,120]
[337484163,1725693273481,-500.0,0.00047671,120]
[337484164,1725693273524,-491.07560357,0.00047671,120]
[337484165,1725693273567,-3993.05,0.00047671,120]
[337484166,1725693273615,-151.0,0.00047671,120]
[337484167,1725693273660,-151.0,0.00047671,120]
[337484168,1725693273701,-500.0,0.00047671,120]
[337484169,1725693273746,-231.7944995,0.00047671,120]
[337484170,1725693273788,-151.0,0.00047671,120]
[337484171,1725693273829,-151.0,0.00047671,120]
[337484172,1725693273870,-267.407128,0.00047671,120]
[337484173,1725693273913,-267.407128,0.00047671,120]
[337484174,1725693273954,-500.0,0.00047671,60]
[337484175,1725693273999,-642.65,0.00047671,120]
[337484176,1725693274041,-1530.68,0.00047671,120]
[337484177,1725693274082,-500.0,0.00047671,120]
[337484178,1725693274125,-151.0,0.00047671,120]
[337484179,1725693274166,-197.981654,0.00047671,120]
[337484180,1725693274207,-197.981654,0.00047671,120]
[337484181,1725693274247,-500.0,0.00047671,120]
[337484182,1725693274287,-172.680464,0.00047671,120]
[337484183,1725693274327,-172.680464,0.00047671,120]
[337484184,1725693274367,-576.65702496,0.00047671,120]
[337484185,1725693274407,-500.0,0.00047671,120]
[337484186,1725693274446,-500.0,0.00047671,120]
[337484187,1725693274487,-500.0,0.00047671,120]
[337484188,1725693274526,-500.0,0.00047671,120]
[337484189,1725693274567,-500.0,0.00047671,120]
[337484190,1725693274611,-500.0,0.00047671,120]
[337484191,1725693274754,-500.0,0.00047671,120]
[337484192,1725693274794,-500.0,0.00047671,120]
[337484193,1725693274835,-500.0,0.00047671,120]
[337484194,1725693274876,-500.0,0.00047671,120]
[337484195,1725693274919,-500.0,0.00047671,120]
[337484196,1725693274960,-500.0,0.00047671,120]
[337484197,1725693275001,-500.0,0.00047671,120]
[337484198,1725693275044,-2458.18,0.00047671,120]
[337484199,1725693275085,-572.25,0.00047671,120]
[337484200,1725693275123,-500.0,0.00047671,120]
[337484201,1725693275162,-500.0,0.00047671,120]
[337484202,1725693275202,-512.51,0.00047671,120]
[337484203,1725693275244,-868.62,0.00047671,120]
[337484204,1725693275286,-500.0,0.00047671,120]
[337484205,1725693275329,-500.0,0.00047671,120]
[337484206,1725693275369,-500.0,0.00047671,120]
[337484207,1725693275409,-500.0,0.00047671,120]
[337484208,1725693275451,-500.0,0.00047671,120]
[337484209,1725693275492,-500.0,0.00047671,120]
[337484210,1725693275534,-500.0,0.00047671,120]
[337484211,1725693275579,-500.0,0.00047671,120]
[337484212,1725693275620,-1209.1,0.00047671,120]
[337484213,1725693275664,-1975.44,0.00047671,120]
[337484214,1725693275706,-500.0,0.00047671,120]
[337484215,1725693275749,-500.0,0.00047671,120]
[337484216,1725693275795,-500.0,0.00047671,120]
[337484217,1725693275839,-725.85,0.00047671,120]
[337484218,1725693275885,-644.36,0.00047671,120]
[337484219,1725693275930,-500.0,0.00047671,120]
[337484220,1725693275974,-2573.26,0.00047671,120]
[337484221,1725693276017,-500.0,0.00047671,120]
[337484222,1725693276060,-500.0,0.00047671,120]
[337484223,1725693276102,-213.422899,0.00047671,120]
[337484224,1725693276145,-500.0,0.00047671,120]
[337484225,1725693276187,-500.0,0.00047671,120]
[337484226,1725693276230,-500.0,0.00047671,120]
[337484227,1725693276273,-213.422899,0.00047671,120]
[337484228,1725693276314,-500.0,0.00047671,120]
[337484229,1725693276357,-500.0,0.00047671,120]
[337484230,1725693276401,-1103.35,0.00047671,120]
[337484231,1725693276445,-500.0,0.00047671,120]
[337484232,1725693276490,-151.0,0.00047671,120]
[337484233,1725693276534,-500.0,0.00047671,120]
[337484234,1725693276579,-151.0,0.00047671,120]
[337484235,1725693276623,-500.0,0.00047671,120]
[337484236,1725693276664,-500.0,0.00047671,120]
[337484237,1725693276706,-500.0,0.00047671,120]
[337484238,1725693276751,-500.0,0.00047671,120]
[337484239,1725693276793,-616.87,0.00047671,120]
[337484240,1725693276834,-377.05,0.00047671,120]
[337484241,1725693276876,-151.0,0.00047671,120]
[337484242,1725693276919,-151.0,0.00047671,120]
[337484243,1725693276960,-151.0,0.00047671,120]
[337484244,1725693277001,-151.0,0.00047671,120]
[337484245,1725693277142,-500.0,0.00047671,120]
[337484246,1725693277183,-500.0,0.00047671,120]
[337484247,1725693277223,-500.0,0.00047671,120]
[337484248,1725693277262,-1206.12,0.00047671,120]
[337484249,1725693277304,-584.58,0.00047671,120]
[337484250,1725693277345,-500.0,0.00047671,120]
[337484251,1725693277391,-809.31,0.00047671,120]
[337484252,1725693277432,-500.0,0.00047671,120]
[337484253,1725693277476,-151.0,0.00047671,90]
[337484254,1725693277517,-178.781342,0.00047671,90]
[337484255,1725693277561,-1555.56,0.00047671,120]
[337484256,1725693277605,-500.0,0.00047671,120]
[337484257,1725693277648,-500.0,0.00047671,120]
[337484258,1725693277691,-1002.74,0.00047671,120]
[337484259,1725693277735,-500.0,0.00047671,30]
[337484260,1725693277777,-782.07,0.00047671,120]
[337484261,1725693277820,-500.0,0.00047671,120]
[337484262,1725693277862,-1839.15,0.00047671,120]
[337484263,1725693277905,-151.0,0.00047671,120]
[337484264,1725693277946,-500.0,0.00047671,120]
[337484265,1725693277989,-500.0,0.00047671,120]
[337484266,1725693278028,-151.0,0.00047671,120]
[337484267,1725693278071,-589.64927932,0.00047671,21]
[337484268,1725693278112,-500.0,0.00047671,120]
[337484269,1725693278155,-1321.45,0.00047671,120]
[337484270,1725693278195,-500.0,0.00047671,120]
[337484271,1725693278235,-241.580826,0.00047671,120]
[337484272,1725693278276,-2059.22,0.00047671,120]
[337484273,1725693278319,-1067.64,0.00047671,120]
[337484274,1725693278362,-701.69,0.00047671,120]
[337484275,1725693278404,-151.0,0.00047671,120]
[337484276,1725693278446,-151.0,0.00047671,120]
[337484277,1725693278490,-1948.29,0.00047671,120]
[337484278,1725693278534,-241.580826,0.00047671,120]
[337484279,1725693278576,-500.0,0.00047671,120]
[337484280,1725693278619,-151.0,0.00047671,120]
[337484281,1725693278660,-500.0,0.00047671,120]
[337484282,1725693278704,-838.5,0.00047671,120]
[337484283,1725693278747,-500.0,0.00047671,120]
[337484284,1725693278789,-500.0,0.00047671,120]
[337484285,1725693278831,-350.79703185,0.00047671,120]
[337484286,1725693278873,-500.0,0.00047671,120]
[337484287,1725693278917,-266.98648183,0.00047671,120]
[337484288,1725693278959,-151.0,0.00047671,120]
[337484289,1725693279003,-500.0,0.00047671,120]
[337484290,1725693279045,-500.0,0.00047671,120]
[337484291,1725693279088,-151.0,0.00047671,120]
[337484292,1725693279131,-500.0,0.00047671,14]
[337484293,1725693279173,-500.0,0.00047671,120]
[337484294,1725693279215,-500.0,0.00047671,120]
[337484295,1725693279257,-391.20855318,0.00047671,120]
[337484296,1725693279300,-500.0,0.00047671,120]
[337484297,1725693279360,-500.0,0.00047671,120]
[337484298,1725693279529,-500.0,0.00047671,120]
[337484299,1725693279582,-500.0,0.00047671,120]
[337484300,1725693279631,-500.0,0.00047671,120]
[337484301,1725693279683,-500.0,0.00047671,120]
[337484302,1725693279732,-500.0,0.00047671,120]
[337484303,1725693279776,-237.13551254,0.00047671,120]
[337484304,1725693279820,-228.603328,0.00047671,120]
[337484305,1725693279864,-500.0,0.00047671,120]
[337484306,1725693279910,-151.0,0.00047671,120]
[337484307,1725693279953,-228.603328,0.00047671,120]
[337484308,1725693279996,-500.0,0.00047671,120]
[337484309,1725693280039,-500.0,0.00047671,120]
[337484310,1725693280080,-500.0,0.00047671,120]
[337484311,1725693280121,-500.0,0.00047671,120]
[337484312,1725693280161,-500.0,0.00047671,120]
[337484313,1725693280204,-4335.74,0.00047671,120]
[337484314,1725693280247,-500.0,0.00047671,120]
[337484315,1725693280289,-999.0,0.00047671,120]
[337484316,1725693280330,-1444.25,0.00047671,120]
[337484317,1725693280377,-519.45,0.00047671,120]
[337484318,1725693280419,-419.15,0.00047671,120]
[337484319,1725693280462,-500.0,0.00047671,120]
[337484320,1725693280503,-150.0,0.00047673,10]
[337484321,1725693280546,-155.775683,0.000479,13]
[337484322,1725693280589,-500.0,0.00047945,120]
[337484323,1725693280633,-500.0,0.00047945,120]
[337484324,1725693280677,-500.0,0.00047945,120]
[337484325,1725693280721,-500.0,0.00047945,120]
[337484326,1725693280764,-486.08373545,0.00047945,120]
[337484327,1725693280808,-500.0,0.00047945,120]
[337484328,1725693280850,-500.0,0.00047945,120]
[337484329,1725693280903,-500.0,0.00047945,60]
[337484330,1725693280949,-500.0,0.00047945,120]
[337484331,1725693280995,-500.0,0.00047945,120]
[337484332,1725693281038,-1568.73,0.00047945,120]
[337484333,1725693281082,-500.0,0.00047945,120]
[337484334,1725693281127,-500.0,0.00047945,120]
[337484335,1725693281172,-500.0,0.00047945,120]
[337484336,1725693281217,-500.0,0.00047945,120]
[337484337,1725693281261,-500.0,0.00047945,120]
[337484338,1725693281307,-500.0,0.00047945,120]
[337484339,1725693281353,-500.0,0.00047945,120]
[337484340,1725693281397,-3993.05,0.00047945,120]
[337484341,1725693281441,-500.0,0.00047945,120]
[337484342,1725693281484,-151.0,0.00047945,120]
[337484343,1725693281528,-151.0,0.00047945,120]
[337484344,1725693281578,-267.407128,0.00047945,120]
[337484345,1725693281624,-267.407128,0.00047945,120]
[337484346,1725693281671,-503.56816689,0.00047945,60]
[337484347,1725693281716,-642.65,0.00047945,120]
[337484348,1725693281759,-1530.68,0.00047945,120]
[337484349,1725693281887,-345.1,0.00047945,120]
[337484350,1725693281935,-151.0,0.00047945,120]
[337484351,1725693281979,-197.981654,0.00047945,120]
[337484352,1725693282023,-197.981654,0.00047945,120]
[337484353,1725693282067,-500.0,0.00047945,120]
[337484354,1725693282113,-172.680464,0.00047945,120]
[337484355,1725693282156,-172.680464,0.00047945,120]
[337484356,1725693282202,-393.84180013,0.00047945,120]
[337484357,1725693282245,-530.65,0.00047945,120]
[337484358,1725693282293,-151.0,0.00047945,120]
[337484359,1725693282337,-501.63986437,0.00047945,120]
[337484360,1725693282397,-190.511887,0.00047945,120]
[337484361,1725693282444,-500.0,0.00047945,120]
[337484362,1725693282489,-169.382426,0.00047945,120]
[337484363,1725693282534,-169.382426,0.00047945,120]
[337484364,1725693282581,-500.0,0.00047945,120]
[337484365,1725693282626,-500.0,0.00047945,120]
[337484366,1725693282672,-1200.997584,0.00047945,120]
[337484367,1725693282717,-1200.997584,0.00047945,120]
[337484368,1725693282762,-596.079868,0.00047945,120]
[337484369,1725693282806,-596.079868,0.00047945,120]
[337484370,1725693282849,-380.17814121,0.00047945,120]
[337484371,1725693282893,-500.0,0.00047945,120]
[337484372,1725693282939,-256.832796,0.00047945,120]
[337484373,1725693282982,-256.832796,0.00047945,120]
[337484374,1725693283024,-151.0,0.00047945,120]
[337484375,1725693283069,-500.0,0.00047945,120]
[337484376,1725693283110,-500.0,0.00047945,120]
[337484377,1725693283151,-500.0,0.00047945,120]
[337484378,1725693283189,-500.0,0.00047945,120]
[337484379,1725693283228,-500.0,0.00047945,120]
[337484380,1725693283270,-2458.18,0.00047945,120]
[337484381,1725693283312,-151.0,0.00047945,120]
[337484382,1725693283353,-180.701741,0.00047945,120]
[337484383,1725693283397,-500.0,0.00047945,120]
[337484384,1725693283442,-180.701741,0.00047945,120]
[337484385,1725693283483,-500.0,0.00047945,120]
[337484386,1725693283532,-151.0,0.00047945,120]
[337484387,1725693283579,-512.51,0.00047945,120]
[337484388,1725693283621,-151.0,0.00047945,14]
[337484389,1725693283665,-868.62,0.00047945,120]
[337484390,1725693283707,-500.0,0.00047945,120]
[337484391,1725693283748,-199.180226,0.00047945,120]
[337484392,1725693283789,-199.180226,0.00047945,120]
[337484393,1725693283830,-306.95409953,0.00047945,120]
[337484394,1725693283871,-500.0,0.00047945,120]
[337484395,1725693283913,-500.0,0.00047945,120]
[337484396,1725693283957,-500.0,0.00047945,120]
[337484397,1725693284001,-500.0,0.00047945,120]
[337484398,1725693284157,-500.0,0.00047945,120]
[337484399,1725693284200,-151.0,0.00047945,120]
[337484400,1725693284241,-1209.1,0.00047945,120]
[337484401,1725693284282,-1975.44,0.00047945,120]
[337484402,1725693284323,-152.836785,0.00047945,120]
[337484403,1725693284367,-500.0,0.00047945,120]
[337484404,1725693284410,-194.20924915,0.00047945,120]
[337484405,1725693284452,-500.0,0.00047945,120]
[337484406,1725693284495,-725.85,0.00047945,120]
[337484407,1725693284538,-644.36,0.00047945,120]
[337484408,1725693284579,-552.15,0.00047945,120]
[337484409,1725693284620,-2573.26,0.00047945,120]
[337484410,1725693284660,-500.0,0.00047945,120]
[337484411,1725693284701,-500.0,0.00047945,120]
[337484412,1725693284742,-213.422899,0.00047945,120]
[337484413,1725693284783,-500.0,0.00047945,120]
[337484414,1725693284822,-500.0,0.00047945,120]
[337484415,1725693284861,-213.422899,0.00047945,120]
[337484416,1725693284903,-500.0,0.00047945,120]
[337484417,1725693284945,-500.0,0.00047945,120]
[337484418,1725693284988,-1103.35,0.00047945,120]
[337484419,1725693285028,-500.0,0.00047945,120]
[337484420,1725693285071,-151.0,0.00047945,120]
[337484421,1725693285111,-151.0,0.00047945,120]
[337484422,1725693285151,-500.0,0.00047945,120]
[337484423,1725693285191,-151.0,0.00047945,120]
[337484424,1725693285233,-381.7975093,0.00047945,120]
[337484425,1725693285275,-500.0,0.00047945,120]
[337484426,1725693285317,-500.0,0.00047945,120]
[337484427,1725693285359,-500.0,0.00047945,120]
[337484428,1725693285401,-616.87,0.00047945,120]
[337484429,1725693285443,-151.0,0.00047945,120]
[337484430,1725693285484,-151.0,0.00047945,120]
[337484431,1725693285526,-151.0,0.00047945,120]
[337484432,1725693285567,-500.0,0.00047945,120]
[337484433,1725693285612,-500.0,0.00047945,120]
[337484434,1725693285659,-298.23210061,0.00047945,120]
[337484435,1725693285703,-1206.12,0.00047945,120]
[337484436,1725693285748,-584.58,0.00047945,120]
[337484437,1725693285793,-500.0,0.00047945,120]
[337484438,1725693285837,-809.31,0.00047945,120]
[337484439,1725693285881,-500.0,0.00047945,120]
[337484440,1725693285929,-151.0,0.00047945,90]
[337484441,1725693285976,-1555.56,0.00047945,120]
[337484442,1725693286020,-500.0,0.00047945,120]
[337484443,1725693286063,-500.0,0.00047945,120]
[337484444,1725693286104,-1002.74,0.00047945,120]
[337484445,1725693286145,-500.0,0.00047945,30]
[337484446,1725693286269,-782.07,0.00047945,120]
[337484447,1725693286314,-500.0,0.00047945,120]
[337484448,1725693286358,-1839.15,0.00047945,120]
[337484449,1725693286403,-1252.905,0.00047945,120]
[337484450,1725693286445,-151.0,0.00047945,120]
[337484451,1725693286488,-500.0,0.00047945,120]
[337484452,1725693286529,-500.0,0.00047945,120]
[337484453,1725693286571,-204.111227,0.00047945,120]
[337484454,1725693286614,-500.0,0.00047945,120]
[337484455,1725693286658,-1321.45,0.00047945,120]
[337484456,1725693286699,-500.0,0.00047945,120]
[337484457,1725693286743,-241.580826,0.00047945,120]
[337484458,1725693286788,-2059.22,0.00047945,120]
[337484459,1725693286833,-1067.64,0.00047945,120]
[337484460,1725693286878,-701.69,0.00047945,120]
[337484461,1725693286921,-151.0,0.00047945,120]
[337484462,1725693286962,-152.632692,0.00047945,120]
[337484463,1725693287011,-1948.29,0.00047945,120]
[337484464,1725693287052,-241.580826,0.00047945,120]
[337484465,1725693287092,-500.0,0.00047945,120]
[337484466,1725693287132,-151.0,0.00047945,120]
[337484467,1725693287172,-500.0,0.00047945,120]
[337484468,1725693287214,-838.5,0.00047945,120]
[337484469,1725693287255,-500.0,0.00047945,120]
[337484470,1725693287295,-500.0,0.00047945,120]